[Event "Titled Tuesday Blitz March 28 Late 2023"]
[White "Feng, Eric"]
[Black "Gonzalez, Francisco Silva"]
[WhiteFideId "30952590"]
[BlackFideId "1512285"]
[WhiteElo "1785"]
[BlackElo "2074"]
[Result "1-0"]
[Round "07"]
[TimeControl "180+2"]
[Date "2023.03.28"]
[WhiteClock "0:01:39"]
[BlackClock "0:00:52"]

1. d4 {[%clk 0:02:56]}  Nf6 {[%clk 0:02:59]} 2. c4 {[%clk 0:02:57]}  e6 {[%clk 0:02:59]} 3. Nf3 {[%clk 0:02:57]}  d5 {[%clk 0:02:58]} 4. g3 {[%clk 0:02:58]}  dxc4 {[%clk 0:02:57]} 5. Bg2 {[%clk 0:02:58]}  Nc6 {[%clk 0:02:57]} 6. O-O {[%clk 0:02:58]}  Rb8 {[%clk 0:02:57]} 7. Ne5 {[%clk 0:02:58]}  Nxe5 {[%clk 0:02:55]} 8. dxe5 {[%clk 0:02:59]}  Qxd1 {[%clk 0:02:55]} 9. Rxd1 {[%clk 0:03:00]}  Nd5 {[%clk 0:02:55]} 10. e4 {[%clk 0:02:48]}  Nb4 {[%clk 0:02:52]} 11. Bg5 {[%clk 0:02:48]}  Bd7 {[%clk 0:02:49]} 12. Nd2 {[%clk 0:02:42]}  b5 {[%clk 0:02:38]} 13. a4 {[%clk 0:02:42]}  Nc2 {[%clk 0:02:24]} 14. Rac1 {[%clk 0:02:38]}  Nd4 {[%clk 0:02:24]} 15. Bf1 {[%clk 0:02:38]}  Nb3 {[%clk 0:02:23]} 16. Nxb3 {[%clk 0:02:38]}  cxb3 {[%clk 0:02:20]} 17. axb5 {[%clk 0:02:38]}  h6 {[%clk 0:01:56]} 18. Rxc7 {[%clk 0:02:33]}  hxg5 {[%clk 0:01:45]} 19. Rdxd7 {[%clk 0:02:26]}  Bc5 {[%clk 0:01:44]} 20. Rxf7 {[%clk 0:02:16]}  Bb6 {[%clk 0:01:45]} 21. Rce7+ {[%clk 0:02:14]}  Kd8 {[%clk 0:01:44]} 22. Bc4 {[%clk 0:02:13]}  Rf8 {[%clk 0:01:36]} 23. Rxf8+ {[%clk 0:02:08]}  Kxe7 {[%clk 0:01:35]} 24. Rxb8 {[%clk 0:02:09]}  Bd4 {[%clk 0:01:30]} 25. Bxb3 {[%clk 0:02:08]}  Bxe5 {[%clk 0:01:30]} 26. Rb7+ {[%clk 0:02:04]}  Kd6 {[%clk 0:01:30]} 27. Rxa7 {[%clk 0:02:02]}  Bxb2 {[%clk 0:01:29]} 28. Ra6+ {[%clk 0:01:56]}  Kc5 {[%clk 0:01:28]} 29. Rxe6 {[%clk 0:01:46]}  Kxb5 {[%clk 0:01:28]} 30. Bd5 {[%clk 0:01:46]}  Kc5 {[%clk 0:01:25]} 31. f4 {[%clk 0:01:45]}  Kd4 {[%clk 0:01:14]} 32. fxg5 {[%clk 0:01:44]}  Ke3 {[%clk 0:01:13]} 33. Kg2 {[%clk 0:01:43]}  Ke2 {[%clk 0:01:09]} 34. h4 {[%clk 0:01:43]}  Bd4 {[%clk 0:01:06]} 35. h5 {[%clk 0:01:42]}  Ke3 {[%clk 0:01:04]} 36. h6 {[%clk 0:01:42]}  Bf6 {[%clk 0:00:58]} 37. gxf6 {[%clk 0:01:39]}  g6 {[%clk 0:00:57]} 38. f7 {[%clk 0:01:39]}  g5 {[%clk 0:00:57]} 39. f8=Q {[%clk 0:01:39]}  g4 {[%clk 0:00:55]} 40. h7 {[%clk 0:01:39]}  Ke2 {[%clk 0:00:53]} 41. h8=Q {[%clk 0:01:39]}  Ke1 {[%clk 0:00:52]} 42. Rg6 {[%clk 0:01:39]} 1-0


[Site "https://www.chess.com"]

[Event "Titled Tuesday Blitz March 28 Late 2023"]
[White "Kielinkei"]
[Black "Klenburg, Michael"]
[BlackFideId "14102072"]
[WhiteElo "2400"]
[BlackElo "2396"]
[Result "1-0"]
[Round "07"]
[TimeControl "180+2"]
[Date "2023.03.28"]
[WhiteClock "0:01:19"]
[BlackClock "0:01:38"]

1. Nf3 {[%clk 0:03:00]}  Nf6 {[%clk 0:02:59]} 2. g3 {[%clk 0:02:59]}  g6 {[%clk 0:02:59]} 3. Bg2 {[%clk 0:02:59]}  Bg7 {[%clk 0:02:59]} 4. d4 {[%clk 0:03:00]}  O-O {[%clk 0:02:58]} 5. O-O {[%clk 0:03:00]}  d6 {[%clk 0:02:59]} 6. c4 {[%clk 0:03:00]}  Nbd7 {[%clk 0:02:59]} 7. Nc3 {[%clk 0:02:59]}  e5 {[%clk 0:02:59]} 8. h3 {[%clk 0:02:55]}  Re8 {[%clk 0:02:58]} 9. e4 {[%clk 0:02:53]}  exd4 {[%clk 0:02:58]} 10. Nxd4 {[%clk 0:02:53]}  a6 {[%clk 0:02:57]} 11. Re1 {[%clk 0:02:53]}  Rb8 {[%clk 0:02:57]} 12. Be3 {[%clk 0:02:44]}  c5 {[%clk 0:02:55]} 13. Nc2 {[%clk 0:02:36]}  Ne5 {[%clk 0:02:53]} 14. b3 {[%clk 0:02:33]}  b5 {[%clk 0:02:53]} 15. f4 {[%clk 0:02:20]}  Ned7 {[%clk 0:02:51]} 16. Qxd6 {[%clk 0:02:12]}  b4 {[%clk 0:02:50]} 17. e5 {[%clk 0:01:59]}  Nh5 {[%clk 0:02:42]} 18. Ne4 {[%clk 0:01:57]}  Bf8 {[%clk 0:02:03]} 19. Qd2 {[%clk 0:01:52]}  Bb7 {[%clk 0:01:54]} 20. Rad1 {[%clk 0:01:50]}  Bc6 {[%clk 0:01:52]} 21. g4 {[%clk 0:01:38]}  Ng7 {[%clk 0:01:51]} 22. Nf6+ {[%clk 0:01:32]}  Nxf6 {[%clk 0:01:51]} 23. Qxd8 {[%clk 0:01:31]}  Rexd8 {[%clk 0:01:50]} 24. exf6 {[%clk 0:01:28]}  Bxg2 {[%clk 0:01:43]} 25. fxg7 {[%clk 0:01:27]}  Bxg7 {[%clk 0:01:43]} 26. Kxg2 {[%clk 0:01:24]}  Bc3 {[%clk 0:01:43]} 27. Rf1 {[%clk 0:01:20]}  Rdc8 {[%clk 0:01:38]} 28. Rd5 {[%clk 0:01:19]} 1-0


[Site "https://www.chess.com"]

[Event "Titled Tuesday Blitz March 28 Late 2023"]
[White "Smith, Garrett L"]
[Black "Zeynalli, Rashad"]
[WhiteFideId "2024829"]
[BlackFideId "13403320"]
[WhiteElo "2324"]
[BlackElo "2125"]
[Result "1-0"]
[Round "07"]
[TimeControl "180+2"]
[Date "2023.03.28"]
[WhiteClock "0:02:13"]
[BlackClock "0:01:56"]

1. e4 {[%clk 0:03:00]}  c5 {[%clk 0:03:00]} 2. a3 {[%clk 0:03:00]}  Nc6 {[%clk 0:02:56]} 3. b4 {[%clk 0:03:01]}  cxb4 {[%clk 0:02:56]} 4. axb4 {[%clk 0:03:01]}  Nxb4 {[%clk 0:02:57]} 5. d4 {[%clk 0:03:02]}  d6 {[%clk 0:02:53]} 6. c3 {[%clk 0:02:59]}  Nc6 {[%clk 0:02:52]} 7. d5 {[%clk 0:03:00]}  Ne5 {[%clk 0:02:50]} 8. f4 {[%clk 0:02:55]}  Nd7 {[%clk 0:02:31]} 9. Nf3 {[%clk 0:02:51]}  Ngf6 {[%clk 0:02:32]} 10. e5 {[%clk 0:02:41]}  dxe5 {[%clk 0:02:25]} 11. fxe5 {[%clk 0:02:40]}  Ng4 {[%clk 0:02:25]} 12. e6 {[%clk 0:02:38]}  fxe6 {[%clk 0:02:17]} 13. dxe6 {[%clk 0:02:36]}  Nde5 {[%clk 0:02:08]} 14. Bb5+ {[%clk 0:02:30]}  Nc6 {[%clk 0:02:07]} 15. Nd4 {[%clk 0:02:19]}  Ne5 {[%clk 0:01:56]} 16. Qh5+ {[%clk 0:02:13]} 1-0


[Site "https://www.chess.com"]

[Event "Titled Tuesday Blitz March 28 Late 2023"]
[White "Krstulovic, Alex"]
[Black "Skaric, Djuro"]
[WhiteFideId "760056"]
[BlackFideId "934569"]
[WhiteElo "2311"]
[BlackElo "2282"]
[Result "0-1"]
[Round "07"]
[TimeControl "180+2"]
[Date "2023.03.28"]
[WhiteClock "0:00:11"]
[BlackClock "0:00:21"]

1. e4 {[%clk 0:03:00]}  d6 {[%clk 0:03:00]} 2. d4 {[%clk 0:03:00]}  g6 {[%clk 0:03:01]} 3. Nc3 {[%clk 0:03:00]}  Bg7 {[%clk 0:03:02]} 4. g3 {[%clk 0:02:59]}  Nf6 {[%clk 0:03:02]} 5. Bg2 {[%clk 0:02:59]}  O-O {[%clk 0:03:02]} 6. Nge2 {[%clk 0:02:57]}  Nc6 {[%clk 0:03:03]} 7. h3 {[%clk 0:02:56]}  e5 {[%clk 0:03:03]} 8. Be3 {[%clk 0:02:56]}  Nd7 {[%clk 0:03:03]} 9. dxe5 {[%clk 0:02:51]}  dxe5 {[%clk 0:03:02]} 10. O-O {[%clk 0:02:48]}  Nb6 {[%clk 0:03:00]} 11. b3 {[%clk 0:02:44]}  Nd4 {[%clk 0:02:57]} 12. a4 {[%clk 0:02:34]}  Be6 {[%clk 0:02:53]} 13. a5 {[%clk 0:02:28]}  Nxe2+ {[%clk 0:02:53]} 14. Qxe2 {[%clk 0:02:25]}  Nd7 {[%clk 0:02:52]} 15. a6 {[%clk 0:02:11]}  b6 {[%clk 0:02:51]} 16. Rfd1 {[%clk 0:02:08]}  c6 {[%clk 0:02:48]} 17. Na4 {[%clk 0:01:41]}  Qc7 {[%clk 0:02:45]} 18. c4 {[%clk 0:01:28]}  f5 {[%clk 0:02:43]} 19. Bc1 {[%clk 0:01:14]}  f4 {[%clk 0:02:43]} 20. Ba3 {[%clk 0:01:11]}  Rf7 {[%clk 0:02:31]} 21. Rd6 {[%clk 0:01:03]}  Re8 {[%clk 0:02:28]} 22. h4 {[%clk 0:00:27]}  Bf8 {[%clk 0:02:27]} 23. Rd3 {[%clk 0:00:20]}  Nf6 {[%clk 0:02:21]} 24. Bxf8 {[%clk 0:00:20]}  Rexf8 {[%clk 0:02:17]} 25. Kh2 {[%clk 0:00:19]}  fxg3+ {[%clk 0:02:16]} 26. fxg3 {[%clk 0:00:19]}  Ng4+ {[%clk 0:02:15]} 27. Kg1 {[%clk 0:00:19]}  Rf2 {[%clk 0:02:13]} 28. Qe1 {[%clk 0:00:20]}  Qf7 {[%clk 0:02:05]} 29. Nc3 {[%clk 0:00:20]}  Rb2 {[%clk 0:02:00]} 30. Nd1 {[%clk 0:00:20]}  Rc2 {[%clk 0:01:54]} 31. Ne3 {[%clk 0:00:20]}  Nxe3 {[%clk 0:01:53]} 32. Rxe3 {[%clk 0:00:20]}  Qf2+ {[%clk 0:01:50]} 33. Qxf2 {[%clk 0:00:21]}  Rfxf2 {[%clk 0:01:50]} 34. Bf1 {[%clk 0:00:19]}  c5 {[%clk 0:01:47]} 35. Rd1 {[%clk 0:00:19]}  Rf8 {[%clk 0:01:23]} 36. Re2 {[%clk 0:00:18]}  Rxe2 {[%clk 0:01:22]} 37. Bxe2 {[%clk 0:00:18]}  Kf7 {[%clk 0:01:22]} 38. b4 {[%clk 0:00:13]}  cxb4 {[%clk 0:01:22]} 39. Rb1 {[%clk 0:00:13]}  Rc8 {[%clk 0:01:18]} 40. Rxb4 {[%clk 0:00:13]}  Rc5 {[%clk 0:01:19]} 41. Ra4 {[%clk 0:00:12]}  Ke7 {[%clk 0:01:17]} 42. Kf2 {[%clk 0:00:12]}  Bd7 {[%clk 0:01:16]} 43. Ra1 {[%clk 0:00:10]}  Bc8 {[%clk 0:01:15]} 44. Ke3 {[%clk 0:00:09]}  Kd6 {[%clk 0:01:09]} 45. Rd1+ {[%clk 0:00:09]}  Kc7 {[%clk 0:01:09]} 46. Ra1 {[%clk 0:00:09]}  Ra5 {[%clk 0:01:06]} 47. Rf1 {[%clk 0:00:07]}  Bxa6 {[%clk 0:01:05]} 48. Rf7+ {[%clk 0:00:07]}  Kb8 {[%clk 0:01:04]} 49. Rxh7 {[%clk 0:00:08]}  Ra3+ {[%clk 0:01:03]} 50. Kf2 {[%clk 0:00:07]}  Ra2 {[%clk 0:01:03]} 51. Ke3 {[%clk 0:00:07]}  Ra3+ {[%clk 0:01:02]} 52. Kf2 {[%clk 0:00:07]}  Ra2 {[%clk 0:01:00]} 53. Ke3 {[%clk 0:00:08]}  Rb2 {[%clk 0:00:57]} 54. Rg7 {[%clk 0:00:08]}  Bb7 {[%clk 0:00:53]} 55. Rxg6 {[%clk 0:00:08]}  a5 {[%clk 0:00:53]} 56. h5 {[%clk 0:00:07]}  Bxe4 {[%clk 0:00:31]} 57. Kxe4 {[%clk 0:00:03]}  Rxe2+ {[%clk 0:00:31]} 58. Kd5 {[%clk 0:00:04]}  Kb7 {[%clk 0:00:26]} 59. h6 {[%clk 0:00:05]}  Rh2 {[%clk 0:00:26]} 60. Rg7+ {[%clk 0:00:05]}  Ka6 {[%clk 0:00:25]} 61. h7 {[%clk 0:00:06]}  a4 {[%clk 0:00:25]} 62. g4 {[%clk 0:00:06]}  a3 {[%clk 0:00:25]} 63. g5 {[%clk 0:00:07]}  a2 {[%clk 0:00:25]} 64. g6 {[%clk 0:00:08]}  a1=Q {[%clk 0:00:25]} 65. Rg8 {[%clk 0:00:09]}  Qd4+ {[%clk 0:00:24]} 66. Ke6 {[%clk 0:00:09]}  Qxc4+ {[%clk 0:00:22]} 67. Kf6 {[%clk 0:00:10]}  Qc6+ {[%clk 0:00:22]} 68. Kg7 {[%clk 0:00:10]}  Qd7+ {[%clk 0:00:22]} 69. Kf6 {[%clk 0:00:11]}  Rf2+ {[%clk 0:00:21]} 70. Kg5 {[%clk 0:00:11]}  Qe7+ {[%clk 0:00:21]} 71. Kh6 {[%clk 0:00:11]}  Rh2# {[%clk 0:00:21]} 0-1


[Site "https://www.chess.com"]

[Event "Titled Tuesday Blitz March 28 Late 2023"]
[White "Graif, William"]
[Black "Zampronha, Wladimir Camilo"]
[WhiteFideId "2609835"]
[BlackFideId "2103087"]
[WhiteElo "2205"]
[BlackElo "2176"]
[Result "1-0"]
[Round "07"]
[TimeControl "180+2"]
[Date "2023.03.28"]
[WhiteClock "0:00:19"]
[BlackClock "0:00:04"]

1. e4 {[%clk 0:02:59]}  c5 {[%clk 0:02:59]} 2. Nc3 {[%clk 0:02:58]}  Nc6 {[%clk 0:02:59]} 3. Bb5 {[%clk 0:02:57]}  e6 {[%clk 0:02:46]} 4. Bxc6 {[%clk 0:02:57]}  bxc6 {[%clk 0:02:42]} 5. d3 {[%clk 0:02:53]}  d5 {[%clk 0:02:41]} 6. f4 {[%clk 0:02:52]}  Nf6 {[%clk 0:02:29]} 7. Nf3 {[%clk 0:02:47]}  Be7 {[%clk 0:02:25]} 8. e5 {[%clk 0:02:43]}  Nd7 {[%clk 0:02:24]} 9. O-O {[%clk 0:02:41]}  O-O {[%clk 0:02:22]} 10. Qd2 {[%clk 0:02:38]}  Re8 {[%clk 0:02:01]} 11. Kh1 {[%clk 0:02:32]}  f6 {[%clk 0:01:53]} 12. b3 {[%clk 0:02:12]}  fxe5 {[%clk 0:01:28]} 13. fxe5 {[%clk 0:02:09]}  Rf8 {[%clk 0:01:27]} 14. Bb2 {[%clk 0:02:02]}  Qc7 {[%clk 0:01:22]} 15. Na4 {[%clk 0:01:53]}  Ba6 {[%clk 0:01:16]} 16. c4 {[%clk 0:01:46]}  d4 {[%clk 0:01:10]} 17. Rfe1 {[%clk 0:01:20]}  Rf5 {[%clk 0:01:10]} 18. Qe2 {[%clk 0:01:15]}  Raf8 {[%clk 0:01:08]} 19. Ba3 {[%clk 0:01:13]}  Qa5 {[%clk 0:01:05]} 20. Qc2 {[%clk 0:00:47]}  Nb6 {[%clk 0:01:03]} 21. h3 {[%clk 0:00:35]}  Nxa4 {[%clk 0:01:01]} 22. bxa4 {[%clk 0:00:35]}  Qd8 {[%clk 0:00:53]} 23. Qe2 {[%clk 0:00:32]}  Qe8 {[%clk 0:00:51]} 24. Qe4 {[%clk 0:00:28]}  Qh5 {[%clk 0:00:49]} 25. Nxd4 {[%clk 0:00:25]}  Rf4 {[%clk 0:00:39]} 26. Qe2 {[%clk 0:00:25]}  Qh4 {[%clk 0:00:13]} 27. Nxe6 {[%clk 0:00:23]}  Rf2 {[%clk 0:00:11]} 28. Qg4 {[%clk 0:00:21]}  Qxg4 {[%clk 0:00:08]} 29. hxg4 {[%clk 0:00:21]}  Rb8 {[%clk 0:00:07]} 30. Rab1 {[%clk 0:00:18]}  Rxb1 {[%clk 0:00:05]} 31. Rxb1 {[%clk 0:00:19]}  Rxa2 {[%clk 0:00:04]} 32. Bxc5 {[%clk 0:00:19]} 1-0


[Site "https://www.chess.com"]

[Event "Titled Tuesday Blitz March 28 Late 2023"]
[White "sebastianmarinp"]
[Black "Gasparyan, David"]
[BlackFideId "13311980"]
[WhiteElo "2290"]
[BlackElo "2464"]
[Result "1-0"]
[Round "07"]
[TimeControl "180+2"]
[Date "2023.03.28"]
[WhiteClock "0:01:36"]
[BlackClock "0:01:54"]

1. e4 {[%clk 0:03:00]}  c5 {[%clk 0:03:00]} 2. Nf3 {[%clk 0:03:00]}  e6 {[%clk 0:03:00]} 3. d4 {[%clk 0:03:00]}  cxd4 {[%clk 0:02:59]} 4. Nxd4 {[%clk 0:03:01]}  a6 {[%clk 0:03:00]} 5. Bd3 {[%clk 0:03:01]}  Qc7 {[%clk 0:03:01]} 6. c4 {[%clk 0:03:00]}  Nc6 {[%clk 0:02:59]} 7. Nxc6 {[%clk 0:02:58]}  dxc6 {[%clk 0:02:56]} 8. O-O {[%clk 0:02:57]}  Bd6 {[%clk 0:02:56]} 9. f4 {[%clk 0:02:51]}  Ne7 {[%clk 0:02:56]} 10. Kh1 {[%clk 0:02:46]}  O-O {[%clk 0:02:56]} 11. Nc3 {[%clk 0:02:46]}  b5 {[%clk 0:02:53]} 12. e5 {[%clk 0:02:38]}  Bc5 {[%clk 0:02:53]} 13. Ne4 {[%clk 0:02:34]}  Ba7 {[%clk 0:02:52]} 14. Nf6+ {[%clk 0:02:24]}  gxf6 {[%clk 0:02:50]} 15. Bxh7+ {[%clk 0:02:20]}  Kxh7 {[%clk 0:02:49]} 16. Qh5+ {[%clk 0:02:20]}  Kg8 {[%clk 0:02:32]} 17. exf6 {[%clk 0:01:55]}  Nf5 {[%clk 0:02:31]} 18. Qg5+ {[%clk 0:01:41]}  Kh7 {[%clk 0:02:29]} 19. Rf3 {[%clk 0:01:40]}  Bf2 {[%clk 0:01:57]} 20. Rh3+ {[%clk 0:01:37]}  Nh4 {[%clk 0:01:54]} 21. Qg7# {[%clk 0:01:36]} 1-0


[Site "https://www.chess.com"]

[Event "Titled Tuesday Blitz March 28 Late 2023"]
[White "Prieto Aranguren, Alain"]
[Black "reevecanada"]
[WhiteFideId "2268906"]
[WhiteElo "2209"]
[BlackElo "2419"]
[Result "0-1"]
[Round "07"]
[TimeControl "180+2"]
[Date "2023.03.28"]
[WhiteClock "0:01:45"]
[BlackClock "0:01:34"]

1. d3 {[%clk 0:03:00]}  d5 {[%clk 0:02:29]} 2. Nf3 {[%clk 0:02:58]}  Nf6 {[%clk 0:02:19]} 3. Bg5 {[%clk 0:02:57]}  c5 {[%clk 0:02:19]} 4. Nc3 {[%clk 0:02:56]}  e6 {[%clk 0:02:18]} 5. e4 {[%clk 0:02:56]}  d4 {[%clk 0:02:17]} 6. Nb1 {[%clk 0:02:53]}  Be7 {[%clk 0:02:18]} 7. Nbd2 {[%clk 0:02:52]}  O-O {[%clk 0:02:18]} 8. Nc4 {[%clk 0:02:51]}  Nc6 {[%clk 0:02:17]} 9. a4 {[%clk 0:02:51]}  a6 {[%clk 0:02:16]} 10. a5 {[%clk 0:02:49]}  Nd7 {[%clk 0:02:08]} 11. Bxe7 {[%clk 0:02:46]}  Qxe7 {[%clk 0:02:09]} 12. h3 {[%clk 0:02:40]}  e5 {[%clk 0:02:09]} 13. Nfd2 {[%clk 0:02:38]}  Rd8 {[%clk 0:02:09]} 14. Qh5 {[%clk 0:02:34]}  Rb8 {[%clk 0:02:09]} 15. Be2 {[%clk 0:02:32]}  b5 {[%clk 0:02:09]} 16. axb6 {[%clk 0:02:31]}  Nxb6 {[%clk 0:02:10]} 17. Nxb6 {[%clk 0:02:30]}  Rxb6 {[%clk 0:02:09]} 18. Nc4 {[%clk 0:02:31]}  Rb8 {[%clk 0:02:10]} 19. Bg4 {[%clk 0:02:26]}  f6 {[%clk 0:02:09]} 20. Bxc8 {[%clk 0:02:23]}  Rdxc8 {[%clk 0:02:10]} 21. O-O {[%clk 0:02:17]}  a5 {[%clk 0:02:10]} 22. f4 {[%clk 0:02:09]}  exf4 {[%clk 0:02:07]} 23. Rxf4 {[%clk 0:02:08]}  Ne5 {[%clk 0:02:06]} 24. Nxe5 {[%clk 0:02:06]}  fxe5 {[%clk 0:02:04]} 25. Rf5 {[%clk 0:02:06]}  Rxb2 {[%clk 0:01:52]} 26. Rxe5 {[%clk 0:02:03]}  Qd7 {[%clk 0:01:46]} 27. Rd5 {[%clk 0:01:57]}  Qc7 {[%clk 0:01:39]} 28. Qf5 {[%clk 0:01:51]}  Rf8 {[%clk 0:01:36]} 29. Qe6+ {[%clk 0:01:49]}  Kh8 {[%clk 0:01:36]} 30. Rf1 {[%clk 0:01:45]}  Rxf1+ {[%clk 0:01:34]} 31. Kxf1 {[%clk 0:01:45]}  Qf4+ {[%clk 0:01:34]} 0-1


[Site "https://www.chess.com"]

[Event "Titled Tuesday Blitz March 28 Late 2023"]
[White "Fernandez Sanchez, Mario Andres"]
[Black "Torrente, Alejandro Josue"]
[WhiteFideId "6501621"]
[BlackFideId "4437969"]
[WhiteElo "2050"]
[BlackElo "2025"]
[Result "1-0"]
[Round "07"]
[TimeControl "180+2"]
[Date "2023.03.28"]
[WhiteClock "0:00:29"]
[BlackClock "0:00:01"]

1. d4 {[%clk 0:03:00]}  d5 {[%clk 0:03:00]} 2. Bf4 {[%clk 0:03:01]}  Nf6 {[%clk 0:02:58]} 3. e3 {[%clk 0:02:59]}  c5 {[%clk 0:02:58]} 4. Nd2 {[%clk 0:02:59]}  cxd4 {[%clk 0:02:53]} 5. exd4 {[%clk 0:02:59]}  Qb6 {[%clk 0:02:52]} 6. Nb3 {[%clk 0:02:57]}  Bg4 {[%clk 0:02:48]} 7. Nf3 {[%clk 0:02:49]}  Nc6 {[%clk 0:02:47]} 8. c3 {[%clk 0:02:47]}  a5 {[%clk 0:02:40]} 9. a4 {[%clk 0:02:45]}  Bxf3 {[%clk 0:02:38]} 10. gxf3 {[%clk 0:02:46]}  e6 {[%clk 0:02:37]} 11. Bb5 {[%clk 0:02:46]}  Be7 {[%clk 0:02:34]} 12. Rg1 {[%clk 0:02:46]}  Nh5 {[%clk 0:02:34]} 13. Qd2 {[%clk 0:02:44]}  Qd8 {[%clk 0:02:19]} 14. Be3 {[%clk 0:02:28]}  O-O {[%clk 0:02:13]} 15. Qd3 {[%clk 0:02:23]}  Bd6 {[%clk 0:01:58]} 16. O-O-O {[%clk 0:02:19]}  Qh4 {[%clk 0:01:42]} 17. Nd2 {[%clk 0:02:03]}  Nf4 {[%clk 0:01:35]} 18. Qf1 {[%clk 0:02:01]}  Qxh2 {[%clk 0:01:24]} 19. Rg4 {[%clk 0:01:57]}  Rac8 {[%clk 0:01:19]} 20. Kb1 {[%clk 0:01:56]}  h5 {[%clk 0:01:09]} 21. Rg3 {[%clk 0:01:50]}  Qh4 {[%clk 0:00:58]} 22. Qg1 {[%clk 0:01:49]}  g6 {[%clk 0:00:53]} 23. Qh1 {[%clk 0:01:11]}  Qxh1 {[%clk 0:00:50]} 24. Rxh1 {[%clk 0:01:12]}  Kh7 {[%clk 0:00:42]} 25. Rg5 {[%clk 0:01:07]}  Ne7 {[%clk 0:00:34]} 26. Rg4 {[%clk 0:00:58]}  Kg7 {[%clk 0:00:13]} 27. Rxf4 {[%clk 0:00:58]}  Bxf4 {[%clk 0:00:13]} 28. Bxf4 {[%clk 0:00:59]}  Nf5 {[%clk 0:00:13]} 29. Re1 {[%clk 0:00:51]}  Rfd8 {[%clk 0:00:13]} 30. Be5+ {[%clk 0:00:51]}  Kh6 {[%clk 0:00:13]} 31. Bd3 {[%clk 0:00:49]}  Nh4 {[%clk 0:00:11]} 32. Bf6 {[%clk 0:00:49]}  Nf5 {[%clk 0:00:11]} 33. Bxd8 {[%clk 0:00:49]}  Rxd8 {[%clk 0:00:10]} 34. f4 {[%clk 0:00:48]}  h4 {[%clk 0:00:10]} 35. Nf3 {[%clk 0:00:47]}  Kh5 {[%clk 0:00:09]} 36. Rh1 {[%clk 0:00:44]}  Kg4 {[%clk 0:00:08]} 37. Ne5+ {[%clk 0:00:42]}  Kxf4 {[%clk 0:00:07]} 38. Nxf7 {[%clk 0:00:42]}  Rg8 {[%clk 0:00:06]} 39. Ne5 {[%clk 0:00:40]}  g5 {[%clk 0:00:05]} 40. f3 {[%clk 0:00:36]}  Ng3 {[%clk 0:00:05]} 41. Re1 {[%clk 0:00:35]}  h3 {[%clk 0:00:02]} 42. Ng4 {[%clk 0:00:31]}  Rh8 {[%clk 0:00:01]} 43. Nh2 {[%clk 0:00:30]}  Nf5 {[%clk 0:00:01]} 44. Rxe6 {[%clk 0:00:30]}  Kg3 {[%clk 0:00:01]} 45. Re2 {[%clk 0:00:29]} 1-0


[Site "https://www.chess.com"]

[Event "Titled Tuesday Blitz March 28 Late 2023"]
[White "Lorenzo De La Riva, Lazaro"]
[Black "Muhammad, Shahzeb"]
[WhiteFideId "2268809"]
[BlackFideId "7804806"]
[WhiteElo "2294"]
[BlackElo "2271"]
[Result "1-0"]
[Round "07"]
[TimeControl "180+2"]
[Date "2023.03.28"]
[WhiteClock "0:00:27"]
[BlackClock "0:00:09"]

1. d4 {[%clk 0:03:00]}  Nf6 {[%clk 0:02:58]} 2. Bf4 {[%clk 0:03:00]}  e6 {[%clk 0:02:59]} 3. e3 {[%clk 0:03:00]}  d5 {[%clk 0:02:58]} 4. Nd2 {[%clk 0:02:57]}  Bd6 {[%clk 0:02:59]} 5. Qf3 {[%clk 0:02:56]}  Nbd7 {[%clk 0:02:56]} 6. Bxd6 {[%clk 0:02:52]}  cxd6 {[%clk 0:02:56]} 7. c3 {[%clk 0:02:50]}  O-O {[%clk 0:02:55]} 8. Qg3 {[%clk 0:02:41]}  e5 {[%clk 0:02:54]} 9. Bd3 {[%clk 0:02:39]}  Rb8 {[%clk 0:02:53]} 10. Ne2 {[%clk 0:02:38]}  b5 {[%clk 0:02:53]} 11. a3 {[%clk 0:02:31]}  a5 {[%clk 0:02:53]} 12. O-O {[%clk 0:02:31]}  Qc7 {[%clk 0:02:50]} 13. Rfc1 {[%clk 0:02:29]}  Re8 {[%clk 0:02:49]} 14. Qh4 {[%clk 0:02:25]}  Nf8 {[%clk 0:02:47]} 15. Ng3 {[%clk 0:02:23]}  Ng6 {[%clk 0:02:46]} 16. Bxg6 {[%clk 0:02:22]}  hxg6 {[%clk 0:02:43]} 17. Ne2 {[%clk 0:02:20]}  Bg4 {[%clk 0:02:39]} 18. Ng3 {[%clk 0:02:17]}  Qd7 {[%clk 0:02:34]} 19. h3 {[%clk 0:02:15]}  Be6 {[%clk 0:02:29]} 20. Ngf1 {[%clk 0:02:12]}  Nh7 {[%clk 0:02:19]} 21. Qg3 {[%clk 0:02:09]}  Bf5 {[%clk 0:02:15]} 22. Nf3 {[%clk 0:02:07]}  Nf6 {[%clk 0:02:13]} 23. N1d2 {[%clk 0:02:03]}  Ne4 {[%clk 0:02:09]} 24. Nxe4 {[%clk 0:02:00]}  dxe4 {[%clk 0:02:09]} 25. Nd2 {[%clk 0:01:59]}  f6 {[%clk 0:01:53]} 26. Rd1 {[%clk 0:01:46]}  Qf7 {[%clk 0:01:45]} 27. f3 {[%clk 0:01:44]}  exf3 {[%clk 0:01:43]} 28. Qxf3 {[%clk 0:01:44]}  d5 {[%clk 0:01:28]} 29. Nb3 {[%clk 0:01:40]}  Bc2 {[%clk 0:01:26]} 30. Nc5 {[%clk 0:01:37]}  Bxd1 {[%clk 0:01:25]} 31. Rxd1 {[%clk 0:01:38]}  e4 {[%clk 0:01:18]} 32. Qg3 {[%clk 0:01:35]}  b4 {[%clk 0:01:17]} 33. axb4 {[%clk 0:01:35]}  axb4 {[%clk 0:01:17]} 34. cxb4 {[%clk 0:01:25]}  Rxb4 {[%clk 0:01:13]} 35. b3 {[%clk 0:01:26]}  Rc8 {[%clk 0:01:02]} 36. Ra1 {[%clk 0:01:24]}  Qc7 {[%clk 0:00:57]} 37. Qxg6 {[%clk 0:01:23]}  Rb5 {[%clk 0:00:43]} 38. Rc1 {[%clk 0:01:13]}  Qf7 {[%clk 0:00:30]} 39. Qf5 {[%clk 0:01:10]}  Rc7 {[%clk 0:00:29]} 40. Ra1 {[%clk 0:01:08]}  Rb8 {[%clk 0:00:24]} 41. Ra6 {[%clk 0:01:02]}  Re8 {[%clk 0:00:15]} 42. Ne6 {[%clk 0:00:59]}  Rc1+ {[%clk 0:00:13]} 43. Kh2 {[%clk 0:00:59]}  Qd7 {[%clk 0:00:12]} 44. Qg4 {[%clk 0:00:40]}  Rc2 {[%clk 0:00:12]} 45. Nf4 {[%clk 0:00:37]}  Qxg4 {[%clk 0:00:12]} 46. hxg4 {[%clk 0:00:38]}  Rd8 {[%clk 0:00:11]} 47. Ra7 {[%clk 0:00:37]}  Rc3 {[%clk 0:00:11]} 48. Ne6 {[%clk 0:00:36]}  Rd6 {[%clk 0:00:11]} 49. Nxg7 {[%clk 0:00:35]}  Rxb3 {[%clk 0:00:10]} 50. Nf5 {[%clk 0:00:34]}  Rd8 {[%clk 0:00:10]} 51. Rg7+ {[%clk 0:00:33]}  Kh8 {[%clk 0:00:09]} 52. Rg6 {[%clk 0:00:33]}  Rb6 {[%clk 0:00:09]} 53. g5 {[%clk 0:00:32]}  fxg5 {[%clk 0:00:09]} 54. Rxb6 {[%clk 0:00:31]}  Rf8 {[%clk 0:00:09]} 55. Ne7 {[%clk 0:00:29]}  Rf2 {[%clk 0:00:09]} 56. Nxd5 {[%clk 0:00:28]}  Re2 {[%clk 0:00:09]} 57. Re6 {[%clk 0:00:27]}  Kg7 {[%clk 0:00:09]} 58. Rxe4 {[%clk 0:00:28]}  Kg6 {[%clk 0:00:09]} 59. Re5 {[%clk 0:00:27]}  Kh5 {[%clk 0:00:09]} 60. Kg3 {[%clk 0:00:28]}  Re1 {[%clk 0:00:08]} 61. Nf6+ {[%clk 0:00:28]}  Kg6 {[%clk 0:00:07]} 62. Ng4 {[%clk 0:00:29]}  Ra1 {[%clk 0:00:07]} 63. d5 {[%clk 0:00:29]}  Ra3 {[%clk 0:00:07]} 64. d6 {[%clk 0:00:29]}  Kf7 {[%clk 0:00:06]} 65. d7 {[%clk 0:00:29]}  Kg6 {[%clk 0:00:07]} 66. d8=Q {[%clk 0:00:28]}  Rxe3+ {[%clk 0:00:08]} 67. Rxe3 {[%clk 0:00:27]}  Kh5 {[%clk 0:00:09]} 68. Qh8+ {[%clk 0:00:26]}  Kg6 {[%clk 0:00:09]} 69. Qf6+ {[%clk 0:00:26]}  Kh7 {[%clk 0:00:08]} 70. Re7+ {[%clk 0:00:27]}  Kg8 {[%clk 0:00:09]} 71. Qg7# {[%clk 0:00:27]} 1-0


[Site "https://www.chess.com"]